bitfinex/quotes_ETHUSD_20251006
["timestamp","ask_amount","ask_price","bid_price","bid_amount"]
[1759744066285,0.00135631,4571.0,4570.9,18.18599658]
[1759744066978,0.00135631,4571.0,4570.9,16.62135295]
[1759744068592,0.00135631,4571.0,4570.9,5.22135295]
[1759744069191,0.00135631,4571.0,4570.9,6.78648084]
[1759744069980,0.00135631,4571.0,4570.9,2.5096]
[1759744070184,0.44925631,4571.0,4570.9,2.5096]
[1759744070385,0.44925631,4571.0,4570.9,4.69735295]
[1759744070995,0.44925631,4571.0,4570.9,2.5096]
[1759744071194,0.44925631,4571.0,4570.9,4.69735295]
[1759744071705,0.44925631,4571.0,4570.9,2.5096]
[1759744073683,0.44925631,4571.0,4570.9,4.69735295]
[1759744074617,0.44845631,4571.0,4570.9,4.69735295]
[1759744074818,0.44845631,4571.0,4570.6,1.17574061]
[1759744075020,0.44845631,4571.0,4570.6,0.001]
[1759744075021,2.18780082,4570.8,4570.6,0.001]
[1759744075322,2.467,4570.7,4570.1,0.001]
[1759744075482,2.18808804,4570.2,4570.1,0.001]
[1759744075903,2.63598804,4570.2,4570.1,0.001]
[1759744077894,5.30727737,4570.2,4570.1,0.001]
[1759744079423,5.10298804,4570.2,4570.1,0.001]
[1759744082032,2.63598804,4570.2,4570.1,0.001]
[1759744082216,2.467,4570.2,4570.1,0.001]
[1759744082517,0.4479,4570.5,4570.1,0.001]
[1759744082690,2.68899618,4570.4,4570.1,0.001]
[1759744082891,0.501,4570.3,4570.1,0.001]
[1759744083322,0.9482,4570.3,4570.1,0.001]
[1759744083959,0.501,4570.3,4570.1,0.001]
[1759744084134,2.467,4570.2,4570.1,0.001]
[1759744084822,2.467,4570.2,4570.1,0.1106]
[1759744085954,0.1096,4570.7,4570.1,0.5476]
[1759744086257,2.467,4570.6,4570.1,0.5476]
[1759744086426,4.65495014,4570.5,4570.1,0.1106]
[1759744087050,0.4472,4570.8,4570.1,0.1106]
[1759744087225,2.467,4570.7,4570.1,0.1106]
[1759744087428,2.467,4570.6,4570.1,0.1106]
[1759744087854,2.467,4570.6,4570.1,0.5476]
[1759744088054,0.00055631,4571.0,4570.5,0.1096]
[1759744088255,4.65475968,4570.9,4570.5,0.1096]
[1759744088648,0.4472,4570.8,4570.5,0.1096]
[1759744088850,0.4472,4570.7,4570.1,0.001]
[1759744089049,2.18789655,4570.6,4570.3,0.1096]
[1759744089235,2.466,4570.5,4570.3,0.1096]
[1759744089429,2.466,4570.5,4570.1,0.001]
[1759744089660,2.18808804,4570.2,4570.1,0.001]
[1759744090035,2.63528804,4570.2,4570.1,0.001]
[1759744091668,2.83907642,4570.2,4570.1,0.001]
[1759744091840,5.30507642,4570.2,4570.1,0.001]
[1759744092439,5.30504469,4570.2,4570.1,0.001]
[1759744098455,5.30515852,4570.2,4570.1,0.001]
[1759744098854,5.30435852,4570.2,4570.1,0.001]
[1759744099050,2.39115852,4570.2,4570.1,0.001]
[1759744099355,4.85715852,4570.2,4570.1,0.001]
[1759744099561,4.96675852,4570.2,4570.1,0.001]
[1759744099757,5.41395852,4570.2,4570.1,0.001]
[1759744100164,2.50075852,4570.2,4570.1,0.001]
[1759744100363,4.96675852,4570.2,4570.1,0.001]
[1759744101174,2.29768804,4570.2,4570.1,0.438]
[1759744101372,4.76368804,4570.2,4570.1,0.438]
[1759744102771,4.76368804,4570.2,4570.1,0.001]
[1759744105069,4.96803813,4570.2,4570.1,0.001]
[1759744105683,5.41523813,4570.2,4570.1,0.001]
[1759744108686,2.50203813,4570.2,4570.1,0.001]
[1759744108885,4.96803813,4570.2,4570.1,0.001]
[1759744110273,4.97003813,4570.2,4570.1,0.001]
[1759744111680,5.41723813,4570.2,4570.1,0.001]
[1759744112995,4.97003813,4570.2,4570.1,0.001]
[1759744116913,2.50403813,4570.2,4570.1,0.001]
[1759744117129,0.31595009,4570.2,4570.1,0.001]
[1759744117407,4.97003813,4570.2,4570.1,0.4463]
[1759744119019,2.468,4570.2,4570.1,0.4463]
[1759744119585,4.65608804,4570.2,4570.1,0.4463]
[1759744123138,4.65608804,4570.2,4570.1,0.001]
[1759744123323,4.86071248,4570.2,4570.1,0.001]
[1759744123523,4.85991248,4570.2,4570.1,0.001]
[1759744123723,5.44291248,4570.2,4570.1,0.001]
[1759744124743,4.96951248,4570.2,4570.1,0.001]
[1759744128246,5.44291248,4570.2,4570.1,0.001]
[1759744131366,2.18827957,4569.8,4569.3,0.001]
[1759744131534,2.18847113,4569.4,4569.3,0.001]
[1759744131862,4.96869557,4569.4,4569.3,0.001]
[1759744133657,2.50269557,4569.4,4569.3,0.001]
[1759744133876,4.96869557,4569.4,4569.3,0.001]
[1759744135172,2.50269557,4569.4,4569.3,0.001]
[1759744135340,4.96869557,4569.4,4569.3,0.001]
[1759744135541,4.96863927,4569.4,4569.3,0.001]
[1759744136170,4.76407113,4569.4,4569.3,0.001]
[1759744136373,2.29807113,4569.4,4569.3,0.001]
[1759744136597,4.96862887,4569.4,4569.3,0.001]
[1759744137096,4.96862887,4569.4,4569.3,0.4463]
[1759744137097,2.78015774,4569.4,4569.3,0.4463]
[1759744137399,4.76407113,4569.4,4569.3,0.4463]
[1759744138503,2.78113148,4569.4,4569.3,0.4463]
[1759744138673,4.96960261,4569.4,4569.3,0.4463]
[1759744142089,4.76507113,4569.4,4569.3,0.4463]
[1759744143002,2.5766,4569.4,4569.3,0.4463]
[1759744143396,0.1096,4569.4,4569.3,0.4463]
[1759744144081,2.467,4569.4,4569.3,0.4463]
[1759744144276,2.467,4569.4,4569.3,0.84061348]
[1759744144681,2.467,4569.4,4569.3,0.4463]
[1759744145493,4.65547113,4569.4,4569.3,0.4463]
[1759744146213,2.467,4569.4,4569.3,0.4463]
[1759744146782,2.466,4569.4,4569.3,0.4463]
[1759744146986,2.466,4569.4,4569.3,0.001]
[1759744147289,4.65447113,4569.4,4569.3,0.4323]
[1759744147896,4.65367113,4569.4,4569.3,0.4323]
[1759744148781,2.4652,4569.4,4569.3,0.4323]
[1759744152819,4.65367113,4569.4,4569.3,0.001]
[1759744153016,5.11457113,4569.4,4569.3,0.001]
[1759744153190,5.31918281,4569.4,4569.3,0.001]
[1759744159605,9.53918281,4569.4,4569.3,0.001]
[1759744162436,9.54118281,4569.4,4569.3,0.001]
[1759744163036,9.65078281,4569.4,4569.3,0.001]
[1759744166916,9.65083713,4569.4,4569.3,0.001]
[1759744169732,9.18993713,4569.4,4569.3,0.001]
[1759744172442,9.18913713,4569.4,4569.3,0.001]
[1759744172748,6.72473713,4569.4,4569.3,0.001]
[1759744173053,6.72473713,4569.4,4569.3,0.4621]
[1759744173054,0.1116,4569.4,4569.3,0.4621]
[1759744173456,0.002,4569.4,4569.3,0.4621]
[1759744173627,0.002,4569.4,4569.3,2.65061902]
[1759744173628,2.47,4569.4,4569.3,2.65061902]
[1759744173827,2.47,4569.4,4569.3,3.28724893]
[1759744174040,2.47,4569.4,4569.3,1.09872991]
[1759744174353,0.002,4569.4,4569.3,3.26536374]
[1759744174652,2.47,4569.4,4569.3,3.26536374]
[1759744174837,2.47,4569.4,4569.3,1.07684472]
[1759744175038,2.47,4569.4,4569.3,2.25158533]
[1759744175556,0.002,4569.4,4569.3,2.25158533]
[1759744175757,2.47,4569.4,4569.3,2.25158533]
[1759744177726,2.47,4569.4,4569.3,4.44010435]
[1759744177932,0.002,4569.4,4569.3,6.84010435]
[1759744178160,0.002,4569.4,4569.3,5.66536374]
[1759744178633,2.469,4569.4,4569.3,5.66536374]
[1759744178837,2.469,4569.4,4569.3,6.29896374]
[1759744178838,0.002,4569.4,4569.3,6.29896374]
[1759744179065,0.002,4569.4,4569.3,6.40856374]
[1759744179229,0.002,4569.4,4569.3,7.97369163]
[1759744179663,0.002,4569.4,4569.3,19.37369163]
[1759744180170,0.002,4569.4,4569.3,17.80856374]
[1759744186734,0.002,4569.4,4569.3,19.37065185]
[1759744186933,0.002,4569.4,4569.3,17.80856374]
[1759744189344,0.002,4569.4,4569.3,17.89611973]
[1759744190140,0.002,4569.4,4569.3,17.26251973]
[1759744192363,0.002,4569.4,4569.3,5.31386374]
[1759744192557,0.002,4569.4,4569.3,6.39376374]
[1759744192759,0.002,4569.4,4569.3,17.79376374]
[1759744193773,0.002,4569.4,4569.3,17.16016374]
[1759744194369,0.002,4569.4,4569.3,17.79376374]
[1759744196185,0.002,4569.4,4569.3,17.34746374]
[1759744196789,0.0012,4569.4,4569.3,17.34746374]
[1759744200056,0.0012,4569.4,4569.3,17.79376374]
[1759744200258,0.0012,4569.4,4569.3,19.35585185]
[1759744201268,0.0012,4569.4,4569.3,19.35997936]
[1759744201478,0.4589,4569.4,4569.3,3.12534472]
[1759744201664,0.4589,4569.4,4569.3,2.5106]
[1759744202073,0.4589,4569.4,4569.3,0.1106]
[1759744202490,0.0012,4569.4,4569.3,2.29911902]
[1759744202799,0.0012,4569.4,4569.3,5.33271902]
[1759744202956,0.0012,4569.4,4569.3,5.78101902]
[1759744203159,0.0012,4569.4,4569.3,7.87480164]
[1759744203983,0.0012,4569.4,4569.3,7.42650164]
[1759744204388,0.4719,4569.4,4569.3,8.99536257]
[1759744204698,0.4719,4569.4,4569.3,6.26797995]
[1759744204699,0.0012,4569.4,4569.3,6.26797995]
[1759744204860,0.0012,4569.4,4569.3,4.69911902]
[1759744205060,0.4719,4569.4,4569.3,4.69911902]
[1759744205277,0.0012,4569.4,4569.3,4.69911902]
[1759744206100,0.0012,4569.4,4569.3,5.78101902]
[1759744206398,0.0012,4569.4,4569.3,7.71818219]
[1759744208283,0.0012,4569.4,4569.3,19.11818219]
[1759744209173,0.002,4569.6,4569.3,19.11818219]
[1759744209174,0.002,4569.6,4569.5,2.18842324]
[1759744209377,0.002,4569.6,4569.5,5.24390747]
[1759744209577,0.002,4569.6,4569.5,5.67032324]
[1759744209778,0.002,4569.6,4569.5,6.9426958]
[1759744209974,0.002,4569.6,4569.5,18.3426958]
[1759744210278,0.002,4569.6,4569.5,19.85677736]
[1759744211172,0.002,4569.6,4569.5,17.8943958]
[1759744212418,0.002,4569.6,4569.5,18.3426958]
[1759744212578,0.002,4569.6,4569.5,18.4522958]
[1759744212905,0.002,4569.6,4569.5,20.41467736]
[1759744213612,0.002,4569.6,4569.5,20.50222933]
[1759744215103,0.002,4569.6,4569.5,18.53984777]
[1759744215879,0.002,4569.6,4569.5,18.09154777]
[1759744216079,0.002,4569.6,4569.5,18.53984777]
[1759744217680,1e-08,4570.2,4569.8,0.6336]
[1759744217910,1e-08,4570.2,4570.1,2.82173592]
[1759744218106,1e-08,4570.2,4570.1,5.22173592]
[1759744218309,1e-08,4570.2,4570.1,17.15757428]
[1759744219080,0.4727,4571.2,4570.9,2.82135295]
[1759744219081,0.002,4571.2,4570.9,2.82135295]
[1759744219311,0.002,4571.2,4570.9,4.38968685]
[1759744219618,0.002,4571.2,4570.9,5.28743774]
[1759744219908,0.002,4571.2,4570.9,7.68743774]
[1759744220086,0.002,4571.2,4570.9,6.11910384]
[1759744220506,0.002,4571.2,4570.9,5.48550384]
[1759744221093,0.002,4571.2,4570.9,6.11910384]
[1759744221407,0.00175631,4571.2,4571.1,2.18765723]
[1759744221711,0.00175631,4571.2,4571.0,4.58769897]
[1759744221912,0.00175631,4571.2,4571.1,2.18765723]
[1759744222085,0.00175631,4571.2,4571.1,15.98765723]
[1759744222415,0.47245631,4571.2,4571.1,2.18765723]
[1759744222994,0.00175631,4571.2,4571.1,5.22125723]
[1759744223314,0.00175631,4571.2,4571.1,7.38974904]
[1759744223812,0.47245631,4571.2,4571.1,7.38974904]
[1759744224015,0.47245631,4571.2,4571.1,6.75614904]
[1759744224318,0.47245631,4571.2,4571.1,7.38974904]
[1759744224845,0.00175631,4571.2,4571.1,7.38974904]
[1759744226134,0.00175631,4571.2,4571.1,5.22125723]
[1759744226320,0.00175631,4571.2,4571.1,17.1570795]
[1759744227714,0.00175631,4571.2,4571.1,17.2666795]
[1759744231134,0.00175631,4571.2,4571.1,16.8183795]
[1759744231624,0.00175631,4571.2,4571.1,16.8193795]
[1759744231831,0.00175631,4571.2,4571.1,18.76492136]
[1759744232432,0.00175631,4571.2,4571.1,15.94366413]
[1759744232722,0.47245631,4571.2,4571.1,13.69825723]
[1759744232934,0.47245631,4571.2,4571.1,16.09825723]
[1759744233301,0.47245631,4571.2,4571.1,16.73185723]
[1759744233723,0.00175631,4571.2,4571.1,16.73185723]
[1759744236629,0.002,4571.5,4571.2,5.22120938]
[1759744237623,0.002,4571.5,4571.2,5.30872916]
[1759744239140,0.002,4571.5,4571.2,16.70872916]
[1759744239519,0.002,4571.5,4571.4,0.6336]
[1759744239727,0.002,4571.5,4571.4,7.38960548]
[1759744240120,0.002,4571.5,4571.4,17.14942656]
[1759744240444,0.002,4571.5,4571.4,16.70862656]
[1759744241353,0.002,4571.5,4571.4,17.14942656]
[1759744241719,0.002,4571.5,4571.4,14.52111289]
[1759744241925,0.002,4571.5,4571.4,18.27385445]
[1759744242235,0.4421,4571.5,4571.4,14.22111367]
[1759744242436,0.4421,4571.5,4571.4,17.10971966]
[1759744243032,0.4421,4571.5,4571.4,11.4]
[1759744243238,0.4421,4571.5,4571.4,2.18751367]
[1759744243425,0.4421,4571.5,4571.4,2.82111367]
[1759744244135,0.002,4571.5,4571.4,2.82111367]
[1759744245446,0.002,4571.5,4571.4,2.8429888]
[1759744245841,0.0012,4571.5,4571.4,2.8429888]
[1759744246253,0.0012,4571.5,4571.4,4.40821669]
[1759744246628,0.0012,4571.5,4571.4,8.11095563]
[1759744246823,0.0012,4571.5,4571.4,8.0890805]
[1759744247365,0.0012,4571.5,4571.4,17.92385261]
[1759744248262,0.0012,4571.5,4571.4,18.36465261]
[1759744249368,0.0012,4571.5,4571.4,20.32506999]
[1759744250030,0.002,4572.2,4571.7,0.6336]
[1759744250231,34.3,4575.0,4573.3,2.18656826]
[1759744250232,0.4401,4573.8,4573.3,2.18656826]
[1759744250445,0.4401,4573.8,4573.0,2.18671051]
[1759744250446,0.4401,4573.7,4573.4,0.02186557]
[1759744250654,0.4401,4573.7,4573.5,2.18650086]
[1759744250835,0.4401,4573.6,4573.5,2.18650086]
[1759744251238,0.4401,4573.6,4573.5,2.29716599]
[1759744251554,0.4401,4573.6,4573.5,13.8]
[1759744252132,0.4401,4573.6,4573.5,13.9096]
[1759744253142,0.4401,4573.6,4573.5,2.5096]
[1759744256353,2.9061,4573.6,4573.5,2.5096]
[1759744257461,2.466,4573.6,4573.5,2.5096]
[1759744258538,0.4401,4573.8,4573.5,4.69610923]
[1759744258850,0.1096,4574.9,4573.8,2.4]
[1759744259052,2.465,4574.6,4573.7,0.6336]
[1759744259365,2.465,4574.6,4574.4,0.1096]
[1759744259554,0.4401,4574.5,4574.4,0.1096]
[1759744260561,2.9061,4574.5,4574.4,0.1096]
[1759744261774,0.4401,4574.5,4574.4,0.1096]
[1759744261951,2.466,4574.5,4574.4,0.1096]
[1759744262842,0.4401,4574.9,4574.4,0.1096]
[1759744263061,2.466,4574.8,4574.4,0.1096]
[1759744263684,0.4471,4574.7,4574.4,0.1096]
[1759744264062,0.4471,4574.6,4574.4,0.1096]
[1759744264455,2.466,4574.5,4574.4,0.1096]
[1759744264961,2.465,4574.5,4574.4,0.1096]
[1759744265162,5.09813126,4574.5,4574.4,0.1096]
[1759744265547,2.9121,4574.5,4574.4,0.1096]
[1759744267481,2.465,4574.5,4574.4,0.1096]
[1759744269074,4.65103126,4574.5,4574.4,0.1096]
[1759744269453,5.09813126,4574.5,4574.4,0.1096]
[1759744269648,2.63313126,4574.5,4574.4,0.1096]
[1759744269855,5.09813126,4574.5,4574.4,0.1096]
[1759744270350,5.09733126,4574.5,4574.4,0.1096]
[1759744270546,2.9121,4574.5,4574.4,0.1096]
[1759744270748,2.465,4574.5,4574.4,0.1096]
[1759744271046,0.002,4574.7,4574.4,0.1096]
[1759744271267,2.465,4574.5,4574.4,0.1096]
[1759744272161,2.465,4574.5,4574.4,2.29567904]
[1759744272345,2.465,4574.5,4574.4,0.1096]
[1759744272549,0.002,4574.7,4574.4,0.1096]
[1759744272792,2.465,4574.5,4574.4,0.1096]
[1759744274170,0.4491,4574.7,4574.4,0.1096]
[1759744274373,2.9121,4574.6,4574.4,0.1096]
[1759744274879,2.18607904,4574.4,4573.2,0.11183618]
[1759744275051,4.65115857,4574.3,4573.9,0.1096]
[1759744275253,2.1862303,4574.1,4573.9,0.1096]
[1759744275454,2.466,4574.0,4573.9,0.1096]
[1759744276088,2.9131,4574.0,4573.9,0.1096]
[1759744276254,0.4471,4574.3,4573.9,0.1096]
[1759744276691,2.466,4574.2,4573.9,0.1096]
[1759744276891,0.1096,4574.5,4573.9,0.1096]
[1759744277187,2.466,4574.4,4573.9,0.1096]
[1759744277753,0.4471,4574.3,4573.9,0.1096]
[1759744278175,2.466,4574.2,4573.9,0.1096]
[1759744278489,2.63310457,4574.6,4573.9,2.29591703]
[1759744278490,2.466,4574.1,4573.9,2.29591703]
[1759744278650,2.63309643,4574.6,4573.9,2.29591703]
[1759744278651,2.466,4574.0,4573.9,2.4]
[1759744278855,2.466,4574.0,4573.8,5.21994592]
[1759744279159,2.466,4574.0,4573.9,0.1096]
[1759744279374,2.466,4574.0,4573.9,2.29591802]
[1759744279676,2.466,4574.0,4573.9,5.76641802]
[1759744280076,2.18793571,4574.7,4574.0,2.4]
[1759744280265,2.466,4574.6,4574.4,0.1096]
[1759744280663,4.65199575,4574.6,4574.4,0.1096]
[1759744280868,2.18603126,4574.5,4574.4,0.1096]
[1759744281084,0.4471,4574.5,4574.4,0.1096]
[1759744281864,5.09913126,4574.5,4574.4,0.1096]
[1759744282071,2.9131,4574.5,4574.4,0.1096]
[1759744282660,2.466,4574.5,4574.4,0.1096]
[1759744282975,4.65203126,4574.5,4574.4,0.1096]
[1759744283876,5.09913126,4574.5,4574.4,0.1096]
[1759744285385,5.30369338,4574.5,4574.4,0.1096]
[1759744288265,2.466,4574.5,4574.4,0.1096]
[1759744288796,4.65203126,4574.5,4574.4,0.1096]
[1759744289473,2.466,4574.5,4574.4,0.1096]
[1759744289677,4.65203126,4574.5,4574.4,0.1096]
[1759744290703,2.466,4574.5,4574.4,0.1096]
[1759744291366,4.65203126,4574.5,4574.4,0.1096]
[1759744291700,2.466,4574.5,4574.4,0.1096]
[1759744292207,5.09913126,4574.5,4574.4,0.1096]
[1759744292372,2.9131,4574.5,4574.4,0.1096]
[1759744292572,2.466,4574.5,4574.4,0.1096]
[1759744292792,5.08033126,4574.5,4574.4,0.1096]
[1759744293594,4.85667731,4574.5,4574.4,0.1096]
[1759744293805,2.18607904,4574.4,4574.3,0.001]
[1759744293973,2.39072509,4574.4,4574.3,0.001]
[1759744294172,2.81902509,4574.4,4574.3,0.001]
[1759744294372,2.85862509,4574.4,4574.3,0.001]
[1759744294796,2.85782509,4574.4,4574.3,0.001]
[1759744294995,5.32382509,4574.4,4574.3,0.001]
[1759744295980,2.38992509,4574.4,4574.3,0.001]
[1759744296191,4.85592509,4574.4,4574.3,0.001]
[1759744297002,5.32382509,4574.4,4574.3,0.001]
[1759744298104,5.32482509,4574.4,4574.3,0.001]
[1759744300581,4.85772509,4574.4,4574.3,0.001]
[1759744300980,4.65307904,4574.4,4574.3,0.001]
[1759744301613,5.32553811,4574.4,4574.3,0.001]
[1759744301828,4.85763811,4574.4,4574.3,0.001]
[1759744302708,4.85766019,4574.4,4574.3,0.001]
[1759744305733,2.39066019,4574.4,4574.3,0.001]
[1759744306031,4.85666019,4574.4,4574.3,0.001]
[1759744306431,5.32456019,4574.4,4574.3,0.001]
[1759744307209,5.43416019,4574.4,4574.3,0.001]
[1759744307534,5.54381472,4574.4,4574.3,0.001]
[1759744310028,5.07591472,4574.4,4574.3,0.001]
[1759744312538,2.60991472,4574.4,4574.3,0.001]
[1759744312747,5.07591472,4574.4,4574.3,0.001]
[1759744313235,5.54381472,4574.4,4574.3,0.001]
[1759744315343,3.07781472,4574.4,4574.3,0.001]
[1759744315511,5.54381472,4574.4,4574.3,0.001]
[1759744319250,5.54301472,4574.4,4574.3,0.001]
[1759744321558,5.07511472,4574.4,4574.3,0.001]
[1759744322765,5.33837904,4574.4,4574.3,0.001]
[1759744323063,5.34037904,4574.4,4574.3,0.001]
[1759744323360,6.90701132,4574.4,4573.8,1e-08]
[1759744323527,0.1096,4574.0,4573.8,1e-08]
[1759744323864,2.465,4573.9,4573.8,1e-08]
[1759744324062,4.9435204,4573.9,4573.8,1e-08]
[1759744324368,0.08749815,4573.9,4573.8,0.43130001]
[1759744324527,4.85603599,4573.9,4573.8,0.43130001]
[1759744324958,4.65131802,4573.9,4573.8,0.43130001]
[1759744325561,4.65131802,4573.9,4573.8,1e-08]
[1759744326135,4.85600533,4573.9,4573.8,1e-08]
[1759744326337,4.85600533,4573.9,4573.8,0.43130001]
[1759744327064,4.85600533,4573.9,4573.8,1e-08]
[1759744329688,5.32330533,4573.9,4573.8,1e-08]
[1759744329988,5.43290533,4573.9,4573.8,1e-08]
[1759744333281,4.96560533,4573.9,4573.8,1e-08]
[1759744333752,2.58789669,4573.9,4573.8,1e-08]
[1759744333955,7.45289669,4573.9,4573.8,1e-08]
[1759744334158,7.92019669,4573.9,4573.8,1e-08]
[1759744337160,7.92012068,4573.9,4573.8,1e-08]
[1759744337982,5.52012068,4573.9,4573.8,1e-08]
[1759744340974,0.40140382,4573.9,4573.8,0.43130001]
[1759744341278,5.05272184,4573.9,4573.8,0.43130001]
[1759744341604,2.58772184,4573.9,4573.8,0.43130001]
[1759744341808,5.05272184,4573.9,4573.8,1e-08]
[1759744342101,5.05472184,4573.9,4573.8,1e-08]
[1759744343317,5.05472184,4573.9,4573.8,0.43130001]
[1759744344208,5.05392184,4573.9,4573.8,1e-08]
[1759744344776,2.58892184,4573.9,4573.8,1e-08]
[1759744344976,5.05392184,4573.9,4573.8,1e-08]
[1759744345903,4.84962478,4573.9,4573.8,1e-08]
[1759744346102,5.05405069,4573.9,4573.8,1e-08]
[1759744347710,5.05410486,4573.9,4573.8,1e-08]
[1759744351614,5.05410486,4573.9,4573.8,0.43130001]
[1759744352020,5.05410486,4573.9,4573.8,1e-08]
[1759744352392,5.05420959,4573.9,4573.8,1e-08]
[1759744355302,5.05420959,4573.9,4573.8,0.44740001]
[1759744356232,4.96750283,4573.9,4573.8,0.44740001]
[1759744357719,2.78118481,4573.9,4573.8,0.44740001]
[1759744358202,4.96750283,4573.9,4573.8,0.44740001]
[1759744359521,2.78118481,4573.9,4573.8,0.44740001]
[1759744359817,2.67158481,4573.9,4573.8,0.44740001]
[1759744359987,4.85790283,4573.9,4573.8,0.44740001]
[1759744365132,4.85790283,4573.9,4573.8,1e-08]
[1759744368131,4.85710283,4573.9,4573.8,1e-08]
[1759744368309,4.8571143,4573.9,4573.8,1e-08]
[1759744369638,4.8571518,4573.9,4573.8,1e-08]
[1759744374541,4.85722657,4573.9,4573.8,1e-08]
[1759744374843,5.31582657,4573.9,4573.8,1e-08]
[1759744375217,4.85722657,4573.9,4573.8,1e-08]
[1759744375434,0.20590855,4573.9,4573.8,0.44740001]
[1759744375740,2.67090855,4573.9,4573.8,0.44740001]
[1759744375942,4.8572271,4573.9,4573.8,0.44740001]
[1759744380031,4.8572271,4573.9,4573.8,1e-08]
[1759744380332,4.8572271,4573.9,4573.8,0.44740001]
[1759744380644,0.20590908,4573.9,4573.8,0.44740001]
[1759744381017,2.67090908,4573.9,4573.8,0.44740001]
[1759744381451,0.20590908,4573.9,4573.8,0.44740001]
[1759744381622,2.67090908,4573.9,4573.8,0.44740001]
[1759744382724,0.20590908,4573.9,4573.8,0.44740001]
[1759744383025,2.67090908,4573.9,4573.8,0.44740001]
[1759744383230,2.67090908,4573.9,4573.8,0.46730001]
[1759744383862,4.8572271,4573.9,4573.8,1e-08]
[1759744384624,5.2954271,4573.9,4573.8,1e-08]
[1759744385262,4.8572271,4573.9,4573.8,1e-08]
[1759744385482,2.3922271,4573.9,4573.8,1e-08]
[1759744385764,2.18751802,4573.9,4573.8,1e-08]
[1759744386057,4.85730101,4573.9,4573.8,1e-08]
[1759744387478,5.29551589,4573.9,4573.8,1e-08]
[1759744392746,2.39151589,4573.9,4573.8,1e-08]
[1759744392954,0.20519787,4573.9,4573.8,1e-08]
[1759744393148,2.67019787,4573.9,4573.8,0.46730001]
[1759744394028,2.67019787,4573.9,4573.8,2.65366583]
[1759744394029,0.0004,4573.9,4573.8,2.65366583]
[1759744394234,0.0004,4573.9,4573.8,5.55953963]
[1759744394539,2.4654,4573.9,4573.8,5.53767598]
[1759744394858,0.0004,4573.9,4573.8,5.53767598]
[1759744395074,2.4654,4573.9,4573.8,5.53767598]
[1759744395853,2.4654,4573.9,4573.8,3.35131016]
[1759744396837,2.4654,4573.9,4573.8,5.53767598]
[1759744397049,2.4654,4573.9,4573.8,16.93767598]
[1759744397469,0.0004,4573.9,4573.8,16.93767598]
[1759744397639,2.4654,4573.9,4573.8,16.93767598]
[1759744397840,0.0004,4573.9,4573.8,17.04727598]
[1759744398142,2.4654,4573.9,4573.8,17.04727598]
[1759744398343,2.4654,4573.9,4573.8,14.86091016]
[1759744399067,2.4654,4573.9,4573.8,17.04727598]
[1759744399369,2.4654,4573.9,4573.8,14.86091016]
[1759744399946,2.4654,4573.9,4573.8,17.04727598]
[1759744400251,2.4654,4573.9,4573.8,14.86091016]
[1759744401158,2.4654,4573.9,4573.8,1e-08]
[1759744401474,4.65171802,4573.9,4573.8,1e-08]
[1759744401964,2.4654,4573.9,4573.8,1e-08]
[1759744403968,0.0004,4573.9,4573.8,0.46730001]
[1759744404170,2.4644,4573.9,4573.8,0.46730001]
[1759744404365,2.4644,4573.9,4573.8,0.97267257]
[1759744404558,2.4644,4573.9,4573.8,0.46730001]
[1759744405862,2.4644,4573.9,4573.8,1e-08]
[1759744408174,2.4644,4573.9,4573.8,2.65366583]
[1759744408367,0.0004,4573.9,4573.8,0.46730001]
[1759744408569,2.4644,4573.9,4573.8,2.65366583]
[1759744408762,2.4644,4573.9,4573.8,5.53986232]
[1759744408968,0.0004,4573.9,4573.8,5.53986232]
[1759744409148,2.4644,4573.9,4573.8,6.17346232]
[1759744409343,0.0004,4573.9,4573.8,6.17346232]
[1759744409872,0.0004,4573.9,4573.8,17.57346232]
[1759744411248,0.0004,4573.9,4573.8,17.68306232]
[1759744416297,0.0004,4573.9,4573.8,17.21576232]
[1759744416476,0.0004,4573.9,4573.8,17.68286232]
[1759744417060,2.4636,4574.0,4573.9,5.21991802]
[1759744417260,2.4636,4574.0,4573.9,7.38840983]
[1759744417497,2.4636,4574.0,4573.9,7.85550983]
[1759744420283,2.4636,4574.0,4573.9,5.68701802]
[1759744420489,2.4636,4574.0,4573.9,17.08701802]
[1759744423390,2.4636,4574.0,4573.9,18.65457616]
[1759744426408,2.4656,4574.0,4573.9,17.08701802]
[1759744429284,0.002,4574.0,4573.9,16.61991802]
[1759744429490,0.002,4574.0,4573.9,18.76359187]
[1759744431296,0.002,4574.0,4573.9,19.23069187]
[1759744433341,0.002,4574.0,4573.9,20.79825001]
[1759744434721,0.002,4574.0,4573.9,20.33115001]
[1759744436332,0.002,4574.0,4573.9,18.76359187]
[1759744437119,0.002,4574.0,4573.9,20.32790789]
[1759744437318,0.002,4574.0,4573.9,18.76359187]
[1759744438104,0.002,4574.0,4573.9,20.32806767]
[1759744438303,0.002,4574.0,4573.9,18.76359187]
[1759744440623,2.466,4574.0,4573.9,18.76359187]
[1759744440839,2.8944,4574.0,4573.9,18.76359187]
[1759744441040,2.466,4574.0,4573.9,18.76359187]
[1759744441739,2.4652,4574.0,4573.9,18.76359187]
[1759744445350,2.4652,4574.0,4573.9,19.21509187]
[1759744445850,2.4652,4574.0,4573.9,18.76359187]
[1759744449458,2.4652,4574.0,4573.9,19.21509187]
[1759744449662,2.4652,4574.0,4573.9,18.76359187]
[1759744453160,0.0012,4574.0,4573.9,18.76359187]
[1759744453358,2.4652,4574.0,4573.9,18.76359187]
[1759744454874,2.4652,4574.0,4573.9,16.57727385]
[1759744455043,2.9324,4574.0,4573.9,16.61991802]
[1759744455245,2.4652,4574.0,4573.9,16.61991802]
[1759744455474,2.4652,4574.0,4573.9,17.07141802]
[1759744456043,2.4652,4574.0,4573.9,16.61991802]
[1759744456745,2.4652,4574.0,4573.9,17.07141802]